[Event "*** Titled Tuesday 3|2 Blitz"]
[Site "Chess.com"]
[Date "2016.01.05"]
[Round "6"]
[White "maciek_92"]
[Black "stepanosinovsky"]
[Result "1-0"]
[WhiteElo "2362"]
[BlackElo "2233"]
[TimeControl "180+2"]
[EndTime "12:14:10 PST"]
[Termination "maciek_92 won by resignation"]

1. e4 {[%clk 0:02:57.1]} 1... e5 {[%clk 0:02:59.7]} 2. Nf3 {[%clk 0:02:58]} 2...
Nc6 {[%clk 0:03:00.3]} 3. Bc4 {[%clk 0:02:58.5]} 3... Nf6 {[%clk 0:02:59.7]} 4.
Ng5 {[%clk 0:02:58.2]} 4... d5 {[%clk 0:02:59.4]} 5. exd5 {[%clk 0:02:59]} 5...
Na5 {[%clk 0:03:00.9]} 6. Bb5+ {[%clk 0:03:00.5]} 6... c6 {[%clk 0:03:02.2]} 7.
dxc6 {[%clk 0:03:00.8]} 7... bxc6 {[%clk 0:03:04.1]} 8. Be2 {[%clk 0:02:59.7]}
8... h6 {[%clk 0:03:01.2]} 9. Nh3 {[%clk 0:03:01.3]} 9... Bxh3 {[%clk
0:02:50.3]} 10. gxh3 {[%clk 0:03:01.6]} 10... Bd6 {[%clk 0:02:45.6]} 11. d3
{[%clk 0:02:59.1]} 11... O-O {[%clk 0:02:34.8]} 12. O-O {[%clk 0:02:59.6]} 12...
Nb7 {[%clk 0:02:33.8]} 13. Nc3 {[%clk 0:03:00.3]} 13... Nc5 {[%clk 0:02:34.1]}
14. Be3 {[%clk 0:02:51]} 14... Rb8 {[%clk 0:02:26.5]} 15. b3 {[%clk 0:02:49.6]}
15... Qc7 {[%clk 0:02:27.3]} 16. Bf3 {[%clk 0:02:40.2]} 16... Rfe8 {[%clk
0:02:23.8]} 17. Ne4 {[%clk 0:02:37.9]} 17... Nfxe4 {[%clk 0:02:08.9]} 18. Bxe4
{[%clk 0:02:39.8]} 18... Nxe4 {[%clk 0:01:35.4]} 19. dxe4 {[%clk 0:02:39.3]}
19... Re6 {[%clk 0:01:31.1]} 20. Kh1 {[%clk 0:02:40.1]} 20... Qe7 {[%clk
0:01:00.8]} 21. Rg1 {[%clk 0:02:39.6]} 21... Bc5 {[%clk 0:00:57.8]} 22. Qe2
{[%clk 0:02:20.7]} 22... Bd4 {[%clk 0:00:45.5]} 23. Rad1 {[%clk 0:02:19.1]}
23... c5 {[%clk 0:00:44.7]} 24. Rg3 {[%clk 0:02:04.2]} 24... Kh7 {[%clk
0:00:41]} 25. Bc1 {[%clk 0:01:45.6]} 25... Rf6 {[%clk 0:00:33.1]} 26. Rf1 {[%clk
0:01:45.7]} 26... c4 {[%clk 0:00:24.8]} 27. c3 {[%clk 0:01:27.6]} 27... Bb6
{[%clk 0:00:24.1]} 28. b4 {[%clk 0:01:27.2]} 28... a5 {[%clk 0:00:24.6]} 29. a3
{[%clk 0:01:25.7]} 29... axb4 {[%clk 0:00:25.5]} 30. axb4 {[%clk 0:01:27.4]}
30... Rd8 {[%clk 0:00:25.4]} 31. Be3 {[%clk 0:01:18]} 31... Qc7 {[%clk
0:00:17.3]} 32. Kg2 {[%clk 0:01:12.7]} 32... Qc6 {[%clk 0:00:14]} 33. Bxb6
{[%clk 0:01:12.7]} 33... Qxb6 {[%clk 0:00:14.8]} 34. Qxc4 {[%clk 0:01:13.6]}
34... Rd2 {[%clk 0:00:15.2]} 35. Rf3 {[%clk 0:01:13.6]} 35... Rg6+ {[%clk
0:00:13.6]} 36. Kh1 {[%clk 0:01:14.8]} 36... Qd6 {[%clk 0:00:11.4]} 37. Qxf7
{[%clk 0:01:03.7]} 37... Rd1 {[%clk 0:00:06]} 38. Qc4 {[%clk 0:00:50.4]} 38...
Qd2 {[%clk 0:00:06.9]} 39. Rg3 {[%clk 0:00:22.4]} 39... Rf6 {[%clk 0:00:07.8]}
40. Kg2 {[%clk 0:00:18.6]} 40... Rxf1 {[%clk 0:00:07.9]} 41. Qxf1 {[%clk
0:00:20.2]} 41... Qc2 {[%clk 0:00:09]} 42. Qe1 {[%clk 0:00:20.3]} 42... Rf4
{[%clk 0:00:09.5]} 43. Re3 {[%clk 0:00:21.2]} 43... h5 {[%clk 0:00:10.4]} 44.
Qe2 {[%clk 0:00:21.2]} 44... Qb3 {[%clk 0:00:10.8]} 45. Qxh5+ {[%clk 0:00:22.2]}
45... Kg8 {[%clk 0:00:12.6]} 46. Qxe5 {[%clk 0:00:23.7]} 46... Qf7 {[%clk
0:00:12.4]} 47. Qd5 {[%clk 0:00:24.8]} 47... Rxf2+ {[%clk 0:00:13.1]} 48. Kg3
{[%clk 0:00:26.2]} 48... Rc2 {[%clk 0:00:07.4]} 49. Qxf7+ {[%clk 0:00:27.1]}
49... Kxf7 {[%clk 0:00:09.3]} 50. Kf4 {[%clk 0:00:26.3]} 50... Ke6 {[%clk
0:00:11.2]} 51. Rg3 {[%clk 0:00:27.4]} 51... Rc1 {[%clk 0:00:09.4]} 52. h4
{[%clk 0:00:26.8]} 52... Rc2 {[%clk 0:00:08.1]} 53. h3 {[%clk 0:00:28]} 53...
Rc1 {[%clk 0:00:05.8]} 54. h5 {[%clk 0:00:29.2]} 54... Rf1+ {[%clk 0:00:06]} 55.
Ke3 {[%clk 0:00:29.8]} 55... Rh1 {[%clk 0:00:06.2]} 56. Kd4 {[%clk 0:00:30.9]}
56... Rc1 {[%clk 0:00:06.6]} 57. Kc5 {[%clk 0:00:31.6]} 1-0

[Event "*** Titled Tuesday 3|2 Blitz"]
[Site "Chess.com"]
[Date "2016.01.05"]
[Round "6"]
[White "AdrianaNikolova"]
[Black "THORK"]
[Result "1-0"]
[WhiteElo "2181"]
[BlackElo "2148"]
[TimeControl "180+2"]
[EndTime "12:14:31 PST"]
[Termination "AdrianaNikolova won by resignation"]

1. e4 {[%clk 0:02:31.6]} 1... e5 {[%clk 0:02:56.6]} 2. Nf3 {[%clk 0:02:31.9]}
2... Nf6 {[%clk 0:02:57.9]} 3. Nc3 {[%clk 0:02:31.7]} 3... Bb4 {[%clk
0:02:57.1]} 4. Bc4 {[%clk 0:02:31.1]} 4... O-O {[%clk 0:02:57.8]} 5. d3 {[%clk
0:02:31.3]} 5... Bxc3+ {[%clk 0:02:57.1]} 6. bxc3 {[%clk 0:02:31.6]} 6... Nc6
{[%clk 0:02:58.5]} 7. O-O {[%clk 0:02:32.3]} 7... h6 {[%clk 0:02:59.6]} 8. Be3
{[%clk 0:02:32.6]} 8... d5 {[%clk 0:02:58.1]} 9. exd5 {[%clk 0:02:32.5]} 9...
Nxd5 {[%clk 0:02:59.4]} 10. Bd2 {[%clk 0:02:32.8]} 10... Bg4 {[%clk 0:02:59.4]}
11. h3 {[%clk 0:02:33.4]} 11... Bh5 {[%clk 0:03:00.6]} 12. Re1 {[%clk
0:02:33.3]} 12... Re8 {[%clk 0:03:00.7]} 13. Qe2 {[%clk 0:02:26.1]} 13... Qd6
{[%clk 0:03:01.5]} 14. Qe4 {[%clk 0:02:25.2]} 14... Nf6 {[%clk 0:03:02.7]} 15.
Qe3 {[%clk 0:02:18.9]} 15... Rad8 {[%clk 0:03:00.2]} 16. Nh4 {[%clk 0:02:13.8]}
16... Na5 {[%clk 0:02:44.5]} 17. Bb3 {[%clk 0:02:08.7]} 17... c5 {[%clk
0:02:45]} 18. g4 {[%clk 0:02:01.5]} 18... Bg6 {[%clk 0:02:39.4]} 19. Nxg6 {[%clk
0:02:00.7]} 19... Nxb3 {[%clk 0:02:40.4]} 20. axb3 {[%clk 0:01:55.3]} 20... fxg6
{[%clk 0:02:41.2]} 21. Rxa7 {[%clk 0:01:55.2]} 21... b5 {[%clk 0:02:38.1]} 22.
g5 {[%clk 0:01:49.1]} 22... hxg5 {[%clk 0:02:31.2]} 23. Qxg5 {[%clk 0:01:51]}
23... Nh5 {[%clk 0:02:13.3]} 24. c4 {[%clk 0:01:36.9]} 24... bxc4 {[%clk
0:02:12.8]} 25. bxc4 {[%clk 0:01:38.8]} 25... Qf6 {[%clk 0:02:13.4]} 26. Qxf6
{[%clk 0:01:22.3]} 26... gxf6 {[%clk 0:02:14.3]} 27. Be3 {[%clk 0:01:24.2]}
27... Rc8 {[%clk 0:02:11.7]} 28. Rea1 {[%clk 0:01:21.2]} 28... f5 {[%clk
0:02:05.4]} 29. R1a5 {[%clk 0:01:20.7]} 29... Rf8 {[%clk 0:01:57.7]} 30. Bxc5
{[%clk 0:01:18.6]} 30... Rf7 {[%clk 0:01:59]} 31. Rxf7 {[%clk 0:01:18.7]} 31...
Kxf7 {[%clk 0:02:00.5]} 32. Bd6 {[%clk 0:01:16.5]} 32... e4 {[%clk 0:01:59.4]}
33. c5 {[%clk 0:01:17.8]} 33... exd3 {[%clk 0:01:58.4]} 34. cxd3 {[%clk
0:01:19.7]} 34... Ke6 {[%clk 0:01:59.9]} 35. Ra7 {[%clk 0:01:18.3]} 35... Kd5
{[%clk 0:01:48.6]} 36. Kg2 {[%clk 0:01:16.3]} 36... Re8 {[%clk 0:01:46.7]} 37.
Kf3 {[%clk 0:01:16.9]} 37... Rc8 {[%clk 0:01:40.1]} 38. Ra4 {[%clk 0:01:10.2]}
38... g5 {[%clk 0:01:37.7]} 39. Ra7 {[%clk 0:01:06.8]} 39... Rg8 {[%clk
0:01:38.7]} 40. Rf7 {[%clk 0:01:05.8]} 40... g4+ {[%clk 0:01:39.6]} 41. hxg4
{[%clk 0:01:06.9]} 41... fxg4+ {[%clk 0:01:41]} 42. Kg2 {[%clk 0:01:07.5]} 42...
Ke6 {[%clk 0:01:40.1]} 43. Rh7 {[%clk 0:01:00.9]} 43... Nf6 {[%clk 0:01:39.8]}
44. Re7+ {[%clk 0:01:00]} 44... Kd5 {[%clk 0:01:39.8]} 45. Re5+ {[%clk
0:00:59.6]} 45... Kc6 {[%clk 0:01:40.9]} 46. Re6 {[%clk 0:00:57.6]} 46... Nd5
{[%clk 0:01:39.4]} 47. Rh6 {[%clk 0:00:55.6]} 47... Kb5 {[%clk 0:01:36.7]} 48.
Rh4 {[%clk 0:00:53.1]} 48... Nb4 {[%clk 0:01:35.6]} 49. d4 {[%clk 0:00:51.9]}
49... Kc4 {[%clk 0:01:29]} 50. Kg3 {[%clk 0:00:51.5]} 50... Kxd4 {[%clk
0:01:19.6]} 51. Rxg4+ {[%clk 0:00:49.1]} 51... Rxg4+ {[%clk 0:01:20.7]} 52. Kxg4
{[%clk 0:00:51]} 52... Kd5 {[%clk 0:01:19.8]} 53. Kg5 {[%clk 0:00:46]} 53... Ke6
{[%clk 0:01:15.1]} 54. Kg6 {[%clk 0:00:46.6]} 54... Nd5 {[%clk 0:01:14.4]} 55.
f4 {[%clk 0:00:44.5]} 55... Ne3 {[%clk 0:01:15.7]} 56. Be5 {[%clk 0:00:38.3]}
56... Nf5 {[%clk 0:01:14.1]} 57. Bb8 {[%clk 0:00:33.7]} 57... Nd4 {[%clk
0:01:13.6]} 58. Kg5 {[%clk 0:00:29.1]} 58... Nf3+ {[%clk 0:01:11.9]} 59. Kg4
{[%clk 0:00:28.1]} 59... Nd4 {[%clk 0:01:13.1]} 60. Be5 {[%clk 0:00:25.9]} 60...
Nf5 {[%clk 0:01:11.8]} 61. c6 {[%clk 0:00:25.1]} 61... Ne7 {[%clk 0:01:02.1]}
62. c7 {[%clk 0:00:25.6]} 62... Nc8 {[%clk 0:01:00.5]} 63. Kg5 {[%clk
0:00:20.4]} 63... Kf7 {[%clk 0:01:01.5]} 64. f5 {[%clk 0:00:20.9]} 64... Nb6
{[%clk 0:00:59.8]} 65. Bd4 {[%clk 0:00:21.2]} 65... Nc8 {[%clk 0:00:59]} 66. Bc5
{[%clk 0:00:22.7]} 66... Kg7 {[%clk 0:01:00.4]} 67. f6+ {[%clk 0:00:22.9]} 67...
Kg8 {[%clk 0:01:01.6]} 68. Kg6 {[%clk 0:00:23.6]} 68... Kh8 {[%clk 0:01:00.9]}
69. f7 {[%clk 0:00:21.9]} 69... Ne7+ {[%clk 0:01:02.2]} 70. Kf6 {[%clk
0:00:22.4]} 70... Nd5+ {[%clk 0:01:01.8]} 71. Ke5 {[%clk 0:00:22.5]} 71... Nxc7
{[%clk 0:01:01.9]} 72. f8=Q+ {[%clk 0:00:23.7]} 72... Kh7 {[%clk 0:01:03.5]} 73.
Qe7+ {[%clk 0:00:24.2]} 1-0

[Event "*** Titled Tuesday 3|2 Blitz"]
[Site "Chess.com"]
[Date "2016.01.05"]
[Round "6"]
[White "VSERGUEI"]
[Black "ChessSkool"]
[Result "0-1"]
[WhiteElo "2417"]
[BlackElo "2275"]
[TimeControl "180+2"]
[EndTime "12:15:23 PST"]
[Termination "ChessSkool won by checkmate"]

1. d4 {[%clk 0:03:01.9]} 1... d5 {[%clk 0:02:58.9]} 2. c4 {[%clk 0:03:02.2]}
2... dxc4 {[%clk 0:02:59.5]} 3. e4 {[%clk 0:03:02.2]} 3... e5 {[%clk 0:02:53.7]}
4. Nf3 {[%clk 0:03:01.9]} 4... exd4 {[%clk 0:02:55.1]} 5. Bxc4 {[%clk
0:03:02.5]} 5... Nc6 {[%clk 0:02:55.8]} 6. O-O {[%clk 0:03:03.3]} 6... Bc5
{[%clk 0:02:57.3]} 7. b4 {[%clk 0:02:58]} 7... Bb6 {[%clk 0:02:46.7]} 8. Qb3
{[%clk 0:02:57]} 8... Qe7 {[%clk 0:02:44.2]} 9. Ba3 {[%clk 0:02:56.8]} 9... Qf6
{[%clk 0:02:20.1]} 10. Nbd2 {[%clk 0:02:41.9]} 10... Nge7 {[%clk 0:01:53.8]} 11.
b5 {[%clk 0:02:38.8]} 11... Na5 {[%clk 0:01:53.2]} 12. Qb4 {[%clk 0:02:39.9]}
12... c5 {[%clk 0:01:18.6]} 13. bxc6 {[%clk 0:02:34.8]} 13... Nexc6 {[%clk
0:01:09.3]} 14. e5 {[%clk 0:02:34.2]} 14... Qg6 {[%clk 0:00:59.6]} 15. Qb5
{[%clk 0:02:25.4]} 15... Bh3 {[%clk 0:00:50.7]} 16. Nh4 {[%clk 0:02:22.7]} 16...
Qg4 {[%clk 0:00:31.4]} 17. Ndf3 {[%clk 0:02:14]} 17... Bxg2 {[%clk 0:00:28.1]}
18. Nxg2 {[%clk 0:02:06.9]} 18... Nxc4 {[%clk 0:00:21.1]} 19. Qxc4 {[%clk
0:01:59.9]} 19... Qxf3 {[%clk 0:00:21.4]} 20. e6 {[%clk 0:02:00.6]} 20... f5
{[%clk 0:00:15.4]} 21. e7 {[%clk 0:01:56.5]} 21... h5 {[%clk 0:00:11.6]} 22. Bd6
{[%clk 0:01:44.7]} 22... h4 {[%clk 0:00:12]} 23. h3 {[%clk 0:01:24]} 23... Kd7
{[%clk 0:00:13.1]} 24. Bh2 {[%clk 0:01:08.3]} 24... Rh6 {[%clk 0:00:13.3]} 25.
Rad1 {[%clk 0:00:51.2]} 25... Re8 {[%clk 0:00:12.5]} 26. Rd3 {[%clk 0:00:51.7]}
26... Qh5 {[%clk 0:00:09.1]} 27. Nf4 {[%clk 0:00:44]} 27... Qg5+ {[%clk
0:00:08.9]} 28. Kh1 {[%clk 0:00:44.5]} 28... Qxe7 {[%clk 0:00:09.7]} 29. Nd5
{[%clk 0:00:43.6]} 29... Qe4+ {[%clk 0:00:09.2]} 30. f3 {[%clk 0:00:43.9]} 30...
Qe2 {[%clk 0:00:10.2]} 31. Rfd1 {[%clk 0:00:40.3]} 31... Kc8 {[%clk 0:00:10]}
32. a4 {[%clk 0:00:37.5]} 32... Qe6 {[%clk 0:00:08.9]} 33. Rb1 {[%clk 0:00:32]}
33... Rd8 {[%clk 0:00:08]} 34. Nxb6+ {[%clk 0:00:11.4]} 34... axb6 {[%clk
0:00:08.9]} 35. Qxe6+ {[%clk 0:00:12.3]} 35... Rxe6 {[%clk 0:00:09.4]} 36. Rxb6
{[%clk 0:00:13.9]} 36... Re1+ {[%clk 0:00:10]} 37. Kg2 {[%clk 0:00:14.3]} 37...
Rde8 {[%clk 0:00:11.2]} 38. Rb2 {[%clk 0:00:13.3]} 38... R8e2+ {[%clk
0:00:12.1]} 39. Rxe2 {[%clk 0:00:14.5]} 39... Rxe2+ {[%clk 0:00:14]} 40. Kh1
{[%clk 0:00:15.8]} 40... Ra2 {[%clk 0:00:15.1]} 41. Rd1 {[%clk 0:00:15.2]} 41...
Rxa4 {[%clk 0:00:14.5]} 42. Rg1 {[%clk 0:00:16.4]} 42... d3 {[%clk 0:00:15.4]}
43. Rd1 {[%clk 0:00:17.3]} 43... Rd4 {[%clk 0:00:14.5]} 44. Bg1 {[%clk 0:00:18]}
44... Rd5 {[%clk 0:00:15.3]} 45. Be3 {[%clk 0:00:18.9]} 45... Ne5 {[%clk
0:00:16.1]} 46. Kg2 {[%clk 0:00:19.2]} 46... Nc4 {[%clk 0:00:17.1]} 47. Bg5
{[%clk 0:00:20.3]} 47... b5 {[%clk 0:00:18.2]} 48. Kf2 {[%clk 0:00:21.6]} 48...
Kd7 {[%clk 0:00:19.3]} 49. Bxh4 {[%clk 0:00:22]} 49... Kc6 {[%clk 0:00:19.9]}
50. Bg5 {[%clk 0:00:23.1]} 50... b4 {[%clk 0:00:21.1]} 51. h4 {[%clk 0:00:24.1]}
51... b3 {[%clk 0:00:22.2]} 52. h5 {[%clk 0:00:25.2]} 52... b2 {[%clk
0:00:22.7]} 53. Rb1 {[%clk 0:00:23.3]} 53... Kc5 {[%clk 0:00:20.7]} 54. h6
{[%clk 0:00:22.2]} 54... gxh6 {[%clk 0:00:21]} 55. Bf6 {[%clk 0:00:23.5]} 55...
d2 {[%clk 0:00:16.5]} 56. Ke2 {[%clk 0:00:24.6]} 56... d1=Q+ {[%clk 0:00:16.3]}
57. Rxd1 {[%clk 0:00:24.6]} 57... Rxd1 {[%clk 0:00:18.2]} 58. Bxb2 {[%clk
0:00:25.7]} 58... Nxb2 {[%clk 0:00:19.3]} 59. Ke3 {[%clk 0:00:26.8]} 59... Rd4
{[%clk 0:00:20]} 60. f4 {[%clk 0:00:27.3]} 60... Nd3 {[%clk 0:00:20.2]} 61. Kf3
{[%clk 0:00:28.5]} 61... Nxf4 {[%clk 0:00:21.1]} 62. Ke3 {[%clk 0:00:29.7]}
62... Ne6 {[%clk 0:00:22]} 63. Kf3 {[%clk 0:00:30.9]} 63... Re4 {[%clk
0:00:22.7]} 64. Kg3 {[%clk 0:00:32.2]} 64... Rf4 {[%clk 0:00:22.8]} 65. Kh3
{[%clk 0:00:33.5]} 65... Rg4 {[%clk 0:00:23.7]} 66. Kh2 {[%clk 0:00:34.5]} 66...
Kd4 {[%clk 0:00:25.4]} 67. Kh3 {[%clk 0:00:35.7]} 67... Ke3 {[%clk 0:00:27]} 68.
Kh2 {[%clk 0:00:37.1]} 68... Kf2 {[%clk 0:00:27.9]} 69. Kh3 {[%clk 0:00:38.3]}
69... Nc7 {[%clk 0:00:28.6]} 70. Kh2 {[%clk 0:00:03.5]} 70... Rh4# {[%clk
0:00:27.6]} 0-1

[Event "*** Titled Tuesday 3|2 Blitz"]
[Site "Chess.com"]
[Date "2016.01.05"]
[Round "6"]
[White "Gabrielian_Artur"]
[Black "oskariot"]
[Result "1/2-1/2"]
[WhiteElo "2454"]
[BlackElo "2337"]
[TimeControl "180+2"]
[EndTime "12:16:38 PST"]
[Termination "Game drawn by stalemate"]

1. e4 {[%clk 0:03:01.9]} 1... c5 {[%clk 0:03:00.9]} 2. c3 {[%clk 0:03:02.3]}
2... Nf6 {[%clk 0:02:56.7]} 3. e5 {[%clk 0:03:03.6]} 3... Nd5 {[%clk 0:02:57.9]}
4. Bc4 {[%clk 0:03:04.7]} 4... e6 {[%clk 0:02:58.3]} 5. Nf3 {[%clk 0:03:05.3]}
5... d6 {[%clk 0:02:58.7]} 6. exd6 {[%clk 0:03:05.3]} 6... Bxd6 {[%clk
0:02:58.7]} 7. O-O {[%clk 0:03:06.3]} 7... O-O {[%clk 0:02:59.8]} 8. d4 {[%clk
0:03:07.5]} 8... cxd4 {[%clk 0:02:41.2]} 9. Nxd4 {[%clk 0:03:07.8]} 9... Bxh2+
{[%clk 0:02:08]} 10. Kxh2 {[%clk 0:03:06.2]} 10... Qc7+ {[%clk 0:02:09.1]} 11.
Kg1 {[%clk 0:03:05.8]} 11... Qxc4 {[%clk 0:02:10.2]} 12. Nd2 {[%clk 0:03:06.8]}
12... Qc7 {[%clk 0:02:11]} 13. N2f3 {[%clk 0:02:59.4]} 13... Nc6 {[%clk
0:02:06.1]} 14. c4 {[%clk 0:02:57.5]} 14... Nxd4 {[%clk 0:02:00.3]} 15. Qxd4
{[%clk 0:02:58]} 15... Nf6 {[%clk 0:01:29.2]} 16. b3 {[%clk 0:02:53]} 16... Bd7
{[%clk 0:01:28.4]} 17. Bb2 {[%clk 0:02:51.7]} 17... Bc6 {[%clk 0:01:29.2]} 18.
Ne5 {[%clk 0:02:52.9]} 18... Rfd8 {[%clk 0:01:14.2]} 19. Qe3 {[%clk 0:02:53.4]}
19... Be4 {[%clk 0:01:07.7]} 20. Rad1 {[%clk 0:02:43.6]} 20... Bc2 {[%clk
0:01:04.7]} 21. Rxd8+ {[%clk 0:02:42.4]} 21... Qxd8 {[%clk 0:01:01.6]} 22. Re1
{[%clk 0:02:41.7]} 22... a6 {[%clk 0:00:59.9]} 23. Nxf7 {[%clk 0:02:22.6]} 23...
Kxf7 {[%clk 0:00:58.6]} 24. Qxe6+ {[%clk 0:02:23.5]} 24... Kg6 {[%clk
0:00:59.8]} 25. Re3 {[%clk 0:02:24.5]} 25... Qd1+ {[%clk 0:00:57.8]} 26. Re1
{[%clk 0:02:19.3]} 26... Qg4 {[%clk 0:00:53.6]} 27. Qxg4+ {[%clk 0:02:13.9]}
27... Nxg4 {[%clk 0:00:54.4]} 28. Re7 {[%clk 0:02:14.9]} 28... Nf6 {[%clk
0:00:53.6]} 29. Rxb7 {[%clk 0:02:15.8]} 29... Bb1 {[%clk 0:00:49.8]} 30. a4
{[%clk 0:02:13.7]} 30... Bc2 {[%clk 0:00:49.9]} 31. a5 {[%clk 0:02:12.1]} 31...
Rc8 {[%clk 0:00:44.3]} 32. Rb6 {[%clk 0:02:11.9]} 32... h5 {[%clk 0:00:42.3]}
33. f3 {[%clk 0:02:12.3]} 33... Kf5 {[%clk 0:00:41.4]} 34. Kf2 {[%clk
0:02:11.9]} 34... Rd8 {[%clk 0:00:39.2]} 35. Ke2 {[%clk 0:01:55]} 35... h4
{[%clk 0:00:30.2]} 36. Rb7 {[%clk 0:01:32.8]} 36... Rd7 {[%clk 0:00:27.6]} 37.
Rb6 {[%clk 0:01:29.4]} 37... Rd3 {[%clk 0:00:27]} 38. Rxa6 {[%clk 0:00:58.3]}
38... Rxb3 {[%clk 0:00:27.9]} 39. Bd4 {[%clk 0:00:56.6]} 39... Bd3+ {[%clk
0:00:28.5]} 40. Kf2 {[%clk 0:00:55.3]} 40... Bxc4 {[%clk 0:00:28.5]} 41. Rc6
{[%clk 0:00:56.1]} 41... Bd3 {[%clk 0:00:29.2]} 42. a6 {[%clk 0:00:55.8]} 42...
Ra3 {[%clk 0:00:24.6]} 43. a7 {[%clk 0:00:56.5]} 43... Ra2+ {[%clk 0:00:22.9]}
44. Ke3 {[%clk 0:00:52.8]} 44... Bf1 {[%clk 0:00:20.1]} 45. Rc5+ {[%clk
0:00:47.2]} 45... Ke6 {[%clk 0:00:21]} 46. Re5+ {[%clk 0:00:43.7]} 46... Kd6
{[%clk 0:00:22.1]} 47. Rg5 {[%clk 0:00:33.7]} 47... Nd5+ {[%clk 0:00:22.9]} 48.
Ke4 {[%clk 0:00:33.9]} 48... Re2+ {[%clk 0:00:16.3]} 49. Kf5 {[%clk 0:00:34.6]}
49... Ne7+ {[%clk 0:00:14.9]} 50. Kg4 {[%clk 0:00:29.7]} 50... Rxg2+ {[%clk
0:00:15.9]} 51. Kxh4 {[%clk 0:00:29.9]} 51... Rh2+ {[%clk 0:00:17]} 52. Kg3
{[%clk 0:00:30.9]} 52... Rg2+ {[%clk 0:00:18.2]} 53. Kh4 {[%clk 0:00:30.2]}
53... Rh2+ {[%clk 0:00:19]} 54. Kg4 {[%clk 0:00:28.7]} 54... Ra2 {[%clk
0:00:18.6]} 55. Bc5+ {[%clk 0:00:21.1]} 55... Ke6 {[%clk 0:00:19.9]} 56. Bxe7
{[%clk 0:00:22]} 56... Kxe7 {[%clk 0:00:20.1]} 57. Rxg7+ {[%clk 0:00:23.2]}
57... Kf6 {[%clk 0:00:17.6]} 58. Rb7 {[%clk 0:00:23.9]} 58... Bc4 {[%clk
0:00:16.1]} 59. Kf4 {[%clk 0:00:23.1]} 59... Be6 {[%clk 0:00:16.7]} 60. Ke3
{[%clk 0:00:22.3]} 60... Ra4 {[%clk 0:00:17.6]} 61. Kd3 {[%clk 0:00:20.4]} 61...
Bd5 {[%clk 0:00:16.8]} 62. Rb6+ {[%clk 0:00:17.5]} 62... Ke7 {[%clk 0:00:15.6]}
63. f4 {[%clk 0:00:16.9]} 63... Rxa7 {[%clk 0:00:14.3]} 64. Kd4 {[%clk 0:00:18]}
64... Bf7 {[%clk 0:00:15.3]} 65. f5 {[%clk 0:00:18.9]} 65... Ra5 {[%clk
0:00:16.2]} 66. Ke4 {[%clk 0:00:19.6]} 66... Ra4+ {[%clk 0:00:16.8]} 67. Ke5
{[%clk 0:00:21]} 67... Ra5+ {[%clk 0:00:18.2]} 68. Kf4 {[%clk 0:00:22.4]} 68...
Ra1 {[%clk 0:00:18.3]} 69. Ke5 {[%clk 0:00:23.2]} 69... Re1+ {[%clk 0:00:19.1]}
70. Kf4 {[%clk 0:00:24.7]} 70... Bd5 {[%clk 0:00:20.2]} 71. Ra6 {[%clk
0:00:25.6]} 71... Kf7 {[%clk 0:00:21.4]} 72. Kg5 {[%clk 0:00:25.5]} 72... Rg1+
{[%clk 0:00:22.2]} 73. Kf4 {[%clk 0:00:26.9]} 73... Rf1+ {[%clk 0:00:23.6]} 74.
Ke5 {[%clk 0:00:28.3]} 74... Bc4 {[%clk 0:00:23.7]} 75. Ra7+ {[%clk 0:00:29.1]}
75... Ke8 {[%clk 0:00:24.8]} 76. Rc7 {[%clk 0:00:28.9]} 76... Bd3 {[%clk
0:00:25.6]} 77. f6 {[%clk 0:00:29.4]} 77... Re1+ {[%clk 0:00:27]} 78. Kd6 {[%clk
0:00:28.9]} 78... Bf5 {[%clk 0:00:28.3]} 79. Re7+ {[%clk 0:00:28.7]} 79... Rxe7
{[%clk 0:00:28.9]} 80. fxe7 {[%clk 0:00:30]} 80... Be6 {[%clk 0:00:30]} 81. Kxe6
{[%clk 0:00:30.9]} 1/2-1/2